bitfinex-derivatives/quotes_BTCF0:USTF0_20250309
["timestamp","ask_amount","ask_price","bid_price","bid_amount"]
[1741523801570,0.00011774,84608.0,84607.0,0.1182148]
[1741523805288,0.00011774,84608.0,84607.0,0.4790148]
[1741523806778,0.00011774,84608.0,84607.0,0.5602148]
[1741523807872,0.00011774,84608.0,84607.0,0.1994148]
[1741523809180,0.00011774,84608.0,84607.0,0.3914148]
[1741523809482,0.00011774,84608.0,84607.0,0.0812]
[1741523809676,0.1182148,84607.0,84606.0,0.3608]
[1741523809867,0.00011774,84608.0,84599.0,0.27048]
[1741523810067,0.1182245,84600.0,84599.0,0.18928]
[1741523810472,0.1182301,84596.0,84591.0,0.00017739]
[1741523810680,0.1182301,84596.0,84591.0,0.11841329]
[1741523810880,0.1182301,84596.0,84591.0,0.11841429]
[1741523811078,0.1182301,84596.0,84592.0,0.1182354]
[1741523811274,0.1182301,84596.0,84595.0,0.32995287]
[1741523812376,0.1182301,84596.0,84595.0,0.1182315]
[1741523813486,0.1182357,84592.0,84591.0,0.11841389]
[1741523813880,0.1899,84597.0,84591.0,0.00017739]
[1741523814182,0.1182328,84595.0,84594.0,0.1182301]
[1741523815181,0.1899,84597.0,84594.0,0.1182301]
[1741523815386,0.1899,84597.0,84596.0,0.1182301]
[1741523815680,0.0591005,84617.0,84607.0,0.1182148]
[1741523815681,0.0812,84609.0,84607.0,0.1182148]
[1741523815883,0.11833114,84608.0,84607.0,0.1182148]
[1741523816285,0.29393114,84608.0,84607.0,0.1182148]
[1741523816785,0.17571774,84608.0,84607.0,0.1182148]
[1741523817484,0.17571774,84608.0,84607.0,0.3050148]
[1741523818088,0.00011774,84608.0,84607.0,0.31652155]
[1741523818287,0.00011774,84608.0,84607.0,0.49802155]
[1741523819384,0.00011774,84608.0,84607.0,0.68092155]
[1741523822683,0.00011774,84608.0,84607.0,0.49802155]
[1741523823087,0.00011774,84608.0,84607.0,0.12972155]
[1741523823382,0.00011774,84608.0,84607.0,0.01150675]
[1741523823582,0.11833114,84608.0,84607.0,0.08116]
[1741523823791,0.11833114,84608.0,84607.0,0.09286087]
[1741523823983,0.0591086,84606.0,84598.0,0.08116]
[1741523824198,0.4790217,84602.0,84600.0,0.0113872]
[1741523824587,0.1182231,84601.0,84600.0,0.0113872]
[1741523824897,0.4910231,84601.0,84600.0,0.2828218]
[1741523827696,0.4910231,84601.0,84600.0,0.4010463]
[1741523827899,0.4910231,84601.0,84600.0,0.2828218]
[1741523828295,0.4910231,84601.0,84600.0,0.4010463]
[1741523828602,0.45396,84601.0,84600.0,0.4010463]
[1741523828786,0.5721831,84601.0,84600.0,0.3014245]
[1741523829101,0.3728,84601.0,84600.0,0.3014245]
[1741523829286,0.3728,84601.0,84600.0,0.4856245]
[1741523829489,0.13971345,84605.0,84600.0,0.3674]
[1741523829799,0.13971345,84605.0,84604.0,0.1182189]
[1741523830496,0.20954472,84615.0,84607.0,0.1182148]
[1741523830800,0.0923037,84610.0,84609.0,0.479012]
[1741523830992,0.0923037,84610.0,84609.0,0.560172]
[1741523831195,0.05089749,84610.0,84609.0,0.918772]
[1741523831394,0.00949128,84610.0,84609.0,0.918772]
[1741523831697,1e-08,84610.0,84609.0,0.918772]
[1741523832402,0.08116,84635.0,84609.0,0.918772]
[1741523832403,0.3608,84653.0,84609.0,1.16736]
[1741523832602,0.1805,84640.0,84639.0,0.1181701]
[1741523833196,0.1805,84640.0,84639.0,0.4905701]
[1741523833500,0.1805,84640.0,84639.0,0.3724]
[1741523833699,0.2986687,84640.0,84639.0,0.3724]
[1741523833903,0.2986687,84640.0,84639.0,0.4905701]
[1741523834099,0.1805,84640.0,84639.0,0.4905701]
[1741523834491,0.2986687,84640.0,84639.0,0.3724]
[1741523834890,0.1181729,84637.0,84636.0,0.08116]
[1741523835495,0.1181729,84637.0,84636.0,0.09016939]
[1741523835704,0.2957729,84637.0,84636.0,0.09016939]
[1741523836096,0.1776,84637.0,84636.0,0.21985086]
[1741523837505,0.2957729,84637.0,84636.0,0.10167656]
[1741523837896,0.2957729,84637.0,84636.0,0.21985086]
[1741523838102,0.2957729,84637.0,84636.0,0.10167656]
[1741523838408,0.1776,84637.0,84636.0,0.21985086]
[1741523838700,0.1776,84637.0,84636.0,0.58215086]
[1741523839103,0.3695,84646.0,84645.0,0.1181617]
[1741523840501,0.4876603,84646.0,84645.0,0.1181617]
[1741523841094,0.1181631,84644.0,84643.0,0.177246]
[1741523841297,0.1181631,84644.0,84643.0,0.059082]
[1741523841492,0.1181631,84644.0,84641.0,0.08112]
[1741523841696,0.1181659,84642.0,84641.0,0.1992857]
[1741523841998,0.3553,84643.0,84636.0,0.13868976]
[1741523842195,0.1181715,84638.0,84637.0,0.1992922]
[1741523842703,0.5974041,84641.0,84640.0,0.1181687]
[1741523842704,0.00072,84641.0,84640.0,0.1181687]
[1741523842909,0.3601,84649.0,84648.0,0.1181575]
[1741523843298,0.3601,84649.0,84642.0,0.2583646]
[1741523843299,0.1181645,84643.0,84642.0,0.2583646]
[1741523843596,0.0590794,84647.0,84642.0,0.08112]
[1741523843909,0.1851,84644.0,84643.0,0.1181645]
[1741523844209,0.175,84646.0,84645.0,0.1181617]
[1741523845305,0.1851,84649.0,84648.0,0.1181575]
[1741523846804,0.3732,84649.0,84648.0,0.1181575]
[1741523847615,0.10496268,84659.0,84653.0,0.0590746]
[1741523847906,0.10496268,84659.0,84658.0,0.1181435]
[1741523848305,0.0590724,84658.0,84655.0,0.0590736]
[1741523848504,0.1181463,84656.0,84655.0,0.0590736]
[1741523848900,0.3007463,84656.0,84655.0,0.0590736]
[1741523849100,0.1826,84656.0,84655.0,0.0590736]
[1741523849908,0.1826,84656.0,84655.0,0.2420736]
[1741523853799,0.1826,84656.0,84655.0,0.3231536]
[1741523855711,0.3618,84656.0,84655.0,0.3231536]
[1741523856118,0.26468,84668.0,84662.0,0.118138]
[1741523856119,0.3637,84663.0,84662.0,0.118138]
[1741523857008,0.3637,84663.0,84662.0,0.296738]
[1741523857208,0.1836,84668.0,84662.0,0.296738]
[1741523857403,0.3709,84667.0,84663.0,0.1181366]
[1741523857604,0.21018626,84686.0,84685.0,0.1181059]
[1741523858810,0.33966314,84686.0,84685.0,0.1181059]
[1741523859010,0.40235864,84686.0,84685.0,0.1181059]
[1741523859316,0.39098626,84686.0,84685.0,0.1181059]
[1741523859514,0.58108626,84686.0,84685.0,0.1181059]
[1741523860915,0.3709,84686.0,84685.0,0.1181059]
[1741523862313,0.2191,84708.0,84683.0,0.177]
[1741523862518,0.1799,84698.0,84695.0,0.1180919]
[1741523862715,0.5599305,84696.0,84695.0,0.1180919]
[1741523863114,0.5599305,84696.0,84695.0,0.12960704]
[1741523863620,0.5599305,84696.0,84695.0,0.1180919]
[1741523864113,0.9263305,84696.0,84695.0,0.1180919]
[1741523864514,0.0590522,84687.0,84684.0,0.059053]
[1741523864715,0.4845059,84686.0,84685.0,0.1181045]
[1741523866513,0.1181073,84684.0,84680.0,0.118112]
[1741523866721,0.1181115,84681.0,84680.0,0.118112]
[1741523867321,0.1181115,84681.0,84680.0,0.12982516]
[1741523868021,0.1181128,84680.0,84679.0,0.2362212]
[1741523868220,0.3111128,84680.0,84679.0,0.3543325]
[1741523868922,0.193,84680.0,84679.0,0.36590755]
[1741523869119,0.3111128,84680.0,84679.0,0.36590755]
[1741523869314,0.3111128,84680.0,84679.0,0.24779625]
[1741523870420,0.193,84680.0,84677.0,0.00017717]
[1741523870617,0.1181156,84678.0,84677.0,0.00017717]
[1741523871018,0.2969156,84678.0,84677.0,0.00017717]
[1741523872623,0.2969156,84678.0,84677.0,0.11829417]
[1741523873222,0.30823859,84678.0,84677.0,0.11829417]
[1741523873522,0.30823859,84678.0,84677.0,0.00017717]
[1741523873925,0.30823859,84678.0,84677.0,0.11829417]
[1741523874628,0.2969156,84678.0,84677.0,0.11829417]
[1741523878525,0.1788,84678.0,84677.0,0.11829417]
[1741523878727,0.2598,84678.0,84677.0,0.46449417]
[1741523879527,0.081,84678.0,84677.0,0.46449417]
[1741523879731,0.3647,84682.0,84677.0,0.34637717]
[1741523879919,0.3608,84689.0,84677.0,0.34637717]
[1741523880121,0.4789003,84689.0,84688.0,0.1181017]
[1741523880327,0.5599003,84689.0,84688.0,0.1181017]
[1741523881228,0.5599003,84689.0,84688.0,0.12960773]
[1741523881731,0.9151003,84689.0,84688.0,0.48600773]
[1741523882533,0.3608,84689.0,84688.0,0.48600773]
[1741523883126,0.29304015,84692.0,84691.0,0.1180975]
[1741523883429,0.17494355,84692.0,84688.0,0.36790603]
[1741523883731,0.1842,84691.0,84690.0,0.4785989]
[1741523883929,0.177145,84694.0,84693.0,0.1771366]
[1741523884131,0.177145,84694.0,84693.0,0.5376366]
[1741523884342,0.177145,84694.0,84693.0,0.4195461]
[1741523884630,0.2432475,84694.0,84693.0,0.4195461]
[1741523884830,0.1842,84694.0,84693.0,0.4195461]
[1741523885233,0.299085,84700.0,84699.0,0.1180864]
[1741523886127,0.299085,84700.0,84699.0,0.3516]
[1741523886531,0.1181003,84689.0,84688.0,0.01136443]
[1741523886739,0.1181003,84689.0,84688.0,0.081]
[1741523886928,0.1181003,84689.0,84688.0,0.1991017]
[1741523887535,0.1181003,84689.0,84688.0,0.09260388]
[1741523887925,0.2977003,84689.0,84688.0,0.26700388]
[1741523888230,0.2977003,84689.0,84688.0,0.4398]
[1741523888534,0.2977003,84689.0,84688.0,0.4769017]
[1741523890131,0.3608,84691.0,84690.0,0.1180989]
[1741523890434,0.3820464,84699.0,84698.0,0.1180877]
[1741523891631,0.3010864,84699.0,84698.0,0.4834877]
[1741523891835,0.17494355,84701.0,84698.0,0.4834877]
[1741523892024,0.25590355,84701.0,84699.0,0.1180864]
[1741523892333,0.218085,84700.0,84699.0,0.1180864]
[1741523892537,0.401085,84700.0,84699.0,0.49524003]
[1741523893532,0.218085,84700.0,84699.0,0.49524003]
[1741523894337,0.397185,84700.0,84699.0,0.37715363]
[1741523894533,0.397185,84700.0,84699.0,0.49524003]
[1741523894841,0.53743837,84700.0,84699.0,0.49524003]
[1741523895238,0.53743837,84700.0,84699.0,0.3654]
[1741523895543,0.31494225,84706.0,84699.0,0.3654]
[1741523895544,0.17494355,84706.0,84705.0,0.118078]
[1741523895742,0.17494355,84706.0,84705.0,0.559838]
[1741523898047,0.08096,84726.0,84705.0,0.44176]
[1741523898337,0.059023,84728.0,84724.0,0.1180515]
[1741523898543,0.0590239,84727.0,84724.0,0.1180515]
[1741523898739,0.4788501,84725.0,84724.0,0.1180515]
[1741523898942,0.4788501,84725.0,84724.0,0.4661515]
[1741523899237,0.4788501,84725.0,84724.0,0.3481]
[1741523900739,0.1180529,84723.0,84722.0,0.189]
[1741523900936,0.1180529,84723.0,84722.0,0.5334]
[1741523901136,0.1180529,84723.0,84722.0,0.6514543]
[1741523901445,0.3649,84723.0,84722.0,0.6514543]
[1741523901642,0.3608,84725.0,84724.0,0.1180515]
[1741523902144,0.4788501,84725.0,84724.0,0.1180515]
[1741523902743,0.6554501,84725.0,84724.0,0.1180515]
[1741523904146,0.7576501,84725.0,84722.0,0.68302531]
[1741523904441,0.1180529,84723.0,84722.0,0.62335881]
[1741523904832,0.2239529,84723.0,84722.0,0.74141311]
[1741523905247,0.1059,84723.0,84722.0,0.74141311]
[1741523905449,0.10292,84725.0,84724.0,0.1180515]
[1741523905640,0.08092,84735.0,84724.0,0.1180515]
[1741523905641,0.2857,84728.0,84727.0,0.1180473]
[1741523906041,0.57170626,84734.0,84728.0,0.1180459]
[1741523906238,0.1048,84732.0,84728.0,0.1989659]
[1741523906443,0.1048,84732.0,84728.0,0.08092]
[1741523906642,0.1048,84732.0,84731.0,0.1180418]
[1741523908449,0.34778939,84762.0,84728.0,0.08092]
[1741523908741,0.21018626,84748.0,84747.0,0.1180195]
[1741523908942,0.21018626,84748.0,84747.0,0.1989395]
[1741523909951,0.1019,84755.0,84747.0,0.1989395]
[1741523909952,0.2199093,84755.0,84747.0,0.08092]
[1741523910147,0.2199093,84755.0,84754.0,0.1180097]
[1741523911949,0.22514254,84755.0,84754.0,0.1180097]
[1741523912147,0.10713324,84755.0,84754.0,0.1180097]
[1741523912452,0.22514154,84755.0,84754.0,0.1180097]
[1741523913149,0.2199083,84755.0,84754.0,0.1180097]
[1741523914556,0.1019,84755.0,84754.0,0.1180097]
[1741523915455,0.1179964,84764.0,84760.0,0.1180014]
[1741523915645,0.1180028,84760.0,84759.0,0.1180019]
[1741523915844,0.08088,84766.0,84759.0,0.0590007]
[1741523916047,0.0052626,84765.0,84761.0,0.059]
[1741523916241,0.0052626,84765.0,84764.0,0.1179958]
[1741523916552,0.0052626,84765.0,84757.0,0.0590024]
[1741523916553,0.1180069,84757.0,84756.0,0.1180066]
[1741523916748,0.1180028,84759.0,84758.0,0.2193042]
[1741523916954,0.0590006,84761.0,84760.0,0.1180014]
[1741523917149,0.1232654,84759.0,84758.0,0.17203234]
[1741523917550,0.1232654,84759.0,84758.0,0.23103514]
[1741523918158,0.1232654,84759.0,84758.0,0.11303094]
[1741523918455,0.1232654,84759.0,84758.0,0.23103514]
[1741523918956,0.12342476,84759.0,84758.0,0.23103514]
[1741523919356,0.12342476,84759.0,84758.0,0.11303094]
[1741523919657,0.1180069,84756.0,84755.0,0.08105696]
[1741523919851,0.1180069,84756.0,84744.0,0.01181773]
[1741523919852,0.1180195,84747.0,84744.0,0.01181773]
[1741523920054,0.3608,84748.0,84746.0,0.3069809]
[1741523920356,0.1180181,84748.0,84747.0,0.2103]
[1741523920553,0.12331376,84748.0,84747.0,0.1057]
[1741523920852,0.12331376,84748.0,84746.0,0.3069804]
[1741523920853,0.1180195,84747.0,84746.0,0.18896]
[1741523921553,0.1180195,84747.0,84746.0,0.3069809]
[1741523921748,0.12331516,84747.0,84746.0,0.3069809]
[1741523922054,0.12331516,84747.0,84746.0,0.18896]
[1741523923255,0.1180292,84740.0,84739.0,0.00017696]
[1741523923451,0.5597092,84740.0,84739.0,0.11820756]
[1741523923855,0.44697566,84740.0,84739.0,0.2286745]
[1741523924150,0.56500486,84740.0,84739.0,0.11820756]
[1741523924352,0.56500486,84740.0,84739.0,0.00017696]
[1741523925444,0.56500486,84740.0,84739.0,0.11820756]
[1741523925753,0.56500486,84740.0,84739.0,0.00017696]
[1741523925953,0.56500486,84740.0,84730.0,0.1603209]
[1741523925954,0.44697566,84740.0,84728.0,0.18892]
[1741523926150,0.1180445,84729.0,84728.0,0.18892]
[1741523927046,0.23214016,84729.0,84728.0,0.18892]
[1741523927755,0.11409566,84729.0,84720.0,0.00017696]
[1741523927943,0.1180557,84721.0,84720.0,0.00017696]
[1741523928257,0.12335136,84721.0,84720.0,0.01149079]
[1741523928449,0.12335136,84721.0,84720.0,0.00017696]
[1741523929159,0.1180682,84712.0,84711.0,0.21227502]
[1741523929344,0.44164,84712.0,84711.0,0.33034462]
[1741523929548,0.5597082,84712.0,84711.0,0.33034462]
[1741523929748,0.56500386,84712.0,84711.0,0.33034462]
[1741523930052,0.56500386,84712.0,84711.0,0.21227502]
[1741523930255,0.56500386,84712.0,84707.0,0.2087]
[1741523930256,0.44164,84712.0,84707.0,0.2087]
[1741523930549,0.1180738,84708.0,84707.0,0.3267752]
[1741523930750,0.1180738,84708.0,84707.0,0.2087]
[1741523930958,0.12338006,84708.0,84707.0,0.2087]
[1741523931647,0.12338006,84708.0,84707.0,0.3267752]
[1741523932050,0.00530626,84708.0,84707.0,0.3267752]
[1741523932551,0.12338006,84708.0,84707.0,0.3267752]
[1741523932949,0.00530626,84708.0,84707.0,0.3267752]
[1741523933149,0.00530626,84708.0,84707.0,0.4345752]
[1741523933546,0.00530626,84710.0,84709.0,0.1180724]
[1741523933752,0.08088,84724.0,84719.0,0.1180585]
[1741523933949,0.0590252,84725.0,84719.0,0.1180585]
[1741523934158,0.1954487,84726.0,84719.0,0.1180585]
[1741523934558,0.0774,84726.0,84719.0,0.1180585]
[1741523934964,0.1180516,84724.0,84719.0,0.1180585]
[1741523935256,0.11823417,84720.0,84719.0,0.1180585]
[1741523935451,0.1180599,84718.0,84717.0,0.1989406]
[1741523936059,0.0774,84719.0,84718.0,0.1180599]
[1741523936261,0.1954585,84719.0,84718.0,0.1180599]
[1741523936464,0.00017707,84720.0,84719.0,0.1180585]
[1741523936664,0.00017707,84720.0,84719.0,0.1944585]
[1741523940760,0.11823417,84720.0,84719.0,0.0764]
[1741523940966,0.11823417,84720.0,84719.0,0.1944585]
[1741523941670,0.11823417,84720.0,84719.0,0.0764]
[1741523941963,0.0590334,84713.0,84699.0,0.00177084]
[1741523942164,0.1180794,84704.0,84699.0,0.00177084]
[1741523942368,0.1180794,84704.0,84703.0,0.21245209]
[1741523943064,0.2716794,84704.0,84703.0,0.21245209]
[1741523943266,0.6324794,84704.0,84703.0,0.21245209]
[1741523943663,0.64133934,84704.0,84703.0,0.21245209]
[1741523944060,0.28053934,84704.0,84703.0,0.21245209]
[1741523944564,0.64133934,84704.0,84703.0,0.21245209]
[1741523945064,0.6324794,84704.0,84703.0,0.21245209]
[1741523946263,0.63781516,84704.0,84703.0,0.21245209]
[1741523947869,0.63781516,84704.0,84703.0,0.00017707]
[1741523949168,0.00533576,84704.0,84703.0,0.11825787]
[1741523949967,0.00533576,84704.0,84703.0,0.13007626]
[1741523950371,0.00533576,84704.0,84703.0,0.20917626]
[1741523951260,0.17507452,84723.0,84713.0,0.0590331]
[1741523951462,0.0804,84729.0,84728.0,0.1180459]
[1741523951775,0.17507452,84737.0,84736.0,0.1180348]
[1741523952378,0.17507452,84737.0,84736.0,0.12961269]
[1741523952675,0.17507452,84737.0,84736.0,0.21045269]
[1741523953564,0.17507452,84737.0,84736.0,0.29095269]
[1741523954278,0.18707377,84745.0,84744.0,0.1180236]
[1741523954465,0.30437607,84745.0,84744.0,0.08084]
[1741523954662,0.30437607,84745.0,84744.0,0.1988636]
[1741523954868,0.11819937,84745.0,84744.0,0.1988636]
[1741523955470,0.27709937,84745.0,84744.0,0.16134]
[1741523955671,0.27709937,84745.0,84744.0,0.08084]
[1741523955872,0.177046,84741.0,84740.0,0.1180237]
[1741523956273,0.1180306,84739.0,84738.0,0.0590138]
[1741523956974,0.1978306,84739.0,84738.0,0.0590138]
[1741523957569,0.0798,84739.0,84738.0,0.0590138]
[1741523957778,0.0798,84739.0,84738.0,0.1372138]
[1741523960978,0.00017707,84745.0,84744.0,0.1180236]
[1741523961777,0.00017707,84745.0,84744.0,0.2770236]
[1741523967394,0.00017707,84745.0,84744.0,0.3578236]
[1741523969593,0.00015936,84759.0,84744.0,0.2398]
[1741523969894,0.00015936,84759.0,84758.0,0.4788042]
[1741523970095,0.00015936,84759.0,84758.0,0.7485242]
[1741523970487,0.00015936,84759.0,84758.0,0.8924242]
[1741523973294,0.3608,84795.0,84758.0,0.78620069]
[1741523973483,0.0735,84782.0,84781.0,0.1179721]
[1741523973681,0.3608,84785.0,84780.0,0.33928]
[1741523973889,0.3608,84785.0,84780.0,0.26968]
[1741523973890,0.058984,84784.0,84780.0,0.26968]
[1741523974090,0.1179721,84781.0,84780.0,0.26968]
[1741523974385,0.1179721,84781.0,84780.0,0.18888]
[1741523975591,0.1987321,84781.0,84780.0,0.18888]
[1741523976996,0.1987321,84781.0,84780.0,0.3068535]
[1741523977389,0.1987321,84781.0,84780.0,0.18888]
[1741523979493,0.1987321,84781.0,84775.0,0.00879122]
[1741523979494,0.08076,84781.0,84775.0,0.00879122]
[1741523979693,0.1179833,84773.0,84772.0,0.11816077]
[1741523980598,0.2592833,84773.0,84772.0,0.11816077]
[1741523981498,0.2592833,84773.0,84772.0,0.12714944]
[1741523981898,0.2592833,84773.0,84772.0,0.00017697]
[1741523982199,0.4092833,84773.0,84772.0,7e-08]
[1741523982394,0.64000662,84773.0,84772.0,7e-08]
[1741523982897,0.64000662,84773.0,84772.0,7e-08]
[1741523983100,0.1180111,84753.0,84752.0,0.21227502]
[1741523983300,0.9203711,84753.0,84752.0,0.21227502]
[1741523983695,0.1180167,84749.0,84748.0,0.2828218]
[1741523984204,0.2680167,84749.0,84748.0,0.2828218]
[1741523985194,0.27988488,84749.0,84748.0,0.2828218]
[1741523986199,0.118025,84743.0,84742.0,0.27728576]
[1741523986391,0.559585,84743.0,84742.0,0.06842466]
[1741523986595,0.118032,84738.0,84734.0,0.46319328]
[1741523986800,0.478832,84738.0,84734.0,0.46319328]
[1741523987006,0.1180557,84722.0,84721.0,0.1180543]
[1741523987201,0.5596157,84722.0,84721.0,0.1180543]
[1741523987599,0.7026157,84722.0,84721.0,0.1180543]
[1741523987803,0.58456,84722.0,84721.0,0.1180543]
[1741523988005,0.58456,84722.0,84720.0,0.00886644]
[1741523988006,0.1397824,84729.0,84728.0,0.1180459]
[1741523988200,0.00017697,84730.0,84729.0,0.1180445]
[1741523988406,0.36097697,84730.0,84727.0,0.1180471]
[1741523988600,0.0590249,84726.0,84725.0,0.1180495]
[1741523988997,0.0590251,84725.0,84718.0,0.19789174]
[1741523989193,0.4788585,84719.0,84718.0,0.31595134]
[1741523989505,0.1180585,84719.0,84718.0,0.31595134]
[1741523989901,0.1180585,84719.0,84718.0,0.39005134]
[1741523990102,0.08076,84722.0,84721.0,0.1180557]
[1741523990511,0.1988143,84722.0,84721.0,0.1180557]
[1741523990705,0.0706,84724.0,84723.0,0.1180529]
[1741523991009,0.0731,84729.0,84728.0,0.1180459]
[1741523991210,0.1911445,84729.0,84728.0,0.1180459]
[1741523991410,0.0731,84729.0,84728.0,0.1180459]
[1741523992110,0.36097697,84730.0,84729.0,0.1180445]
[1741523992307,0.00017697,84730.0,84729.0,0.1919445]
[1741523992503,0.00017697,84730.0,84729.0,0.2628445]
[1741523993013,0.11822007,84730.0,84729.0,0.2628445]
[1741523994508,0.00017697,84730.0,84729.0,0.2628445]
[1741523995313,0.11822007,84730.0,84729.0,0.1448]
[1741523995514,0.00017697,84730.0,84721.0,0.5005878]
[1741523995706,0.1180431,84730.0,84729.0,0.3608]
[1741523996417,0.1180431,84730.0,84729.0,0.4788445]
[1741523996608,0.1180431,84730.0,84729.0,0.3608]
[1741523997114,0.1180431,84730.0,84729.0,0.4788445]
[1741523997313,0.00017661,84738.0,84729.0,0.4814]
[1741523997511,0.00017661,84738.0,84737.0,0.1180334]
[1741523997715,0.11820861,84738.0,84737.0,0.1180334]
[1741523998617,0.11820861,84738.0,84736.0,0.3608]
[1741523998618,0.1180334,84737.0,84736.0,0.3608]
[1741523998913,0.2382334,84737.0,84736.0,0.3608]
[1741523999614,0.2382334,84737.0,84736.0,0.4788348]
[1741524000415,0.2382334,84737.0,84736.0,0.3608]
[1741524001412,0.2382334,84737.0,84730.0,0.0577]
[1741524001711,0.1180431,84730.0,84729.0,0.3608]
[1741524001916,0.1988031,84730.0,84729.0,0.3608]
[1741524002316,0.1988031,84730.0,84729.0,0.6001445]
[1741524002516,0.2625031,84730.0,84729.0,0.6001445]
[1741524003619,0.08076,84730.0,84729.0,0.9609445]
[1741524004216,0.1180431,84730.0,84729.0,0.9609445]
[1741524004420,0.08076,84731.0,84729.0,0.9609445]
[1741524004616,0.08076,84731.0,84730.0,0.1180431]
[1741524004813,0.1987965,84735.0,84734.0,0.1180376]
[1741524005412,0.1987965,84735.0,84734.0,0.2424376]
[1741524005816,0.00072,84766.0,84734.0,0.1244]
[1741524006015,1e-08,84738.0,84737.0,0.4788334]
[1741524006216,0.23889314,84757.0,84754.0,0.1180069]
[1741524006217,0.0590045,84755.0,84754.0,0.1180069]
[1741524006521,0.1770168,84755.0,84754.0,0.1180069]
[1741524006914,0.1770168,84755.0,84754.0,0.2384069]
[1741524007515,0.1770168,84755.0,84754.0,0.2384097]
[1741524008625,0.1770168,84755.0,84754.0,0.1204]
[1741524010521,0.1770168,84755.0,84754.0,0.2384097]
[1741524011817,0.0590045,84755.0,84754.0,0.2384097]
[1741524013917,0.0590045,84755.0,84754.0,0.3191697]
[1741524015426,0.1770117,84758.0,84757.0,0.177001]
[1741524015626,0.0590034,84758.0,84757.0,0.177001]
[1741524015829,0.20949999,84766.0,84757.0,0.3608]
[1741524016021,0.1179972,84763.0,84762.0,0.0589987]
[1741524016525,0.1179972,84763.0,84759.0,0.0595]
[1741524016526,0.1180014,84760.0,84759.0,0.0595]
[1741524016713,0.1180014,84760.0,84759.0,0.1775028]
[1741524017322,0.2356014,84760.0,84759.0,0.0595]
[1741524019330,0.1180042,84758.0,84757.0,0.3608]
[1741524019830,0.1180042,84758.0,84757.0,0.4206]
[1741524020233,0.1180042,84758.0,84757.0,0.4845]
[1741524020426,0.1180042,84758.0,84757.0,0.6025055]
[1741524022541,0.11938962,84770.0,84769.0,0.1179888]
[1741524022833,0.20014962,84770.0,84769.0,0.1179888]
[1741524023339,0.20014962,84770.0,84769.0,0.2911888]
[1741524023523,0.17536069,84770.0,84769.0,0.2911888]
[1741524024833,0.17536069,84770.0,84769.0,0.30264687]
[1741524027143,0.08072,84775.0,84769.0,0.30264687]
[1741524027331,0.08072,84775.0,84774.0,0.1179819]
[1741524028336,0.08072,84775.0,84774.0,0.1665819]
[1741524034037,0.0512,84777.0,84774.0,0.0486]
[1741524034239,0.049,84778.0,84776.0,0.4787791]
[1741524034240,0.12972,84778.0,84776.0,0.4787791]
[1741524034446,0.12972,84778.0,84777.0,0.1702777]
[1741524034447,0.08072,84778.0,84777.0,0.1702777]
[1741524034742,0.08072,84778.0,84777.0,0.2191777]
[1741524034943,0.0517,84782.0,84777.0,0.1012]
[1741524035146,0.17536069,84788.0,84777.0,0.1012]
[1741524035445,0.29332489,84788.0,84787.0,0.4787638]
[1741524036145,0.37404489,84788.0,84787.0,0.4787638]
[1741524036341,0.37404489,84788.0,84787.0,0.5761638]
[1741524036648,0.1986842,84788.0,84787.0,0.5761638]
[1741524036848,0.1179642,84788.0,84787.0,0.5761638]
[1741524037038,0.1986842,84788.0,84787.0,0.5761638]
[1741524037344,0.08072,84788.0,84787.0,0.5761638]
[1741524037945,0.13342,84788.0,84787.0,0.5761638]
[1741524040141,0.11007353,84788.0,84787.0,0.5761638]
[1741524040343,0.05737353,84788.0,84787.0,0.5761638]
[1741524045147,0.17544305,84788.0,84787.0,0.5761638]
[1741524045751,0.22674305,84788.0,84787.0,0.5761638]
[1741524046552,0.17544305,84788.0,84787.0,0.5761638]
[1741524048251,0.22474305,84788.0,84787.0,0.4582]
[1741524048446,0.27804305,84788.0,84787.0,0.5761638]
[1741524049052,0.15997353,84788.0,84787.0,0.5761638]
[1741524051853,0.05737353,84788.0,84787.0,0.5761638]
[1741524053053,0.21053166,84788.0,84787.0,0.5761638]
[1741524053259,0.25753166,84788.0,84787.0,0.5761638]
[1741524055859,0.21053166,84788.0,84787.0,0.5761638]
[1741524056052,0.06711259,84800.0,84799.0,0.1179471]
[1741524056362,0.06711259,84800.0,84799.0,0.5594271]
[1741524057461,0.34778939,84821.0,84819.0,0.1179193]
[1741524057656,0.15100099,84821.0,84820.0,0.6246179]
[1741524058262,0.27894233,84834.0,84827.0,0.0589538]
[1741524058457,0.27894233,84834.0,84833.0,0.4786998]
[1741524059061,0.27894233,84834.0,84828.0,0.0476]
[1741524059360,0.1179054,84829.0,84828.0,0.0476]
[1741524059565,0.1179054,84829.0,84828.0,0.4084]
[1741524059764,0.2038382,84829.0,84828.0,0.4084]
[1741524060164,0.3024382,84829.0,84828.0,0.3608]
[1741524060551,0.1179276,84813.0,84811.0,0.00882211]
[1741524060752,0.1179276,84813.0,84805.0,0.3608]
[1741524060959,0.1985676,84813.0,84806.0,0.1179367]
[1741524061159,0.2177276,84813.0,84808.0,0.1179336]
[1741524061367,0.2983676,84813.0,84809.0,0.0503]
[1741524061758,0.2983676,84813.0,84812.0,0.28250162]
[1741524062364,0.31018143,84813.0,84812.0,0.28250162]
[1741524062666,0.30362747,84813.0,84812.0,0.28250162]
[1741524063862,0.17228747,84813.0,84812.0,0.28250162]
[1741524064060,0.00525987,84813.0,84812.0,0.40043062]
[1741524064260,0.08589987,84813.0,84812.0,0.40043062]
[1741524064456,0.08589987,84813.0,84812.0,0.54733062]
[1741524065155,0.26140186,84813.0,84812.0,0.26500585]
[1741524066466,0.18076186,84813.0,84812.0,0.26500585]
[1741524068070,0.17550199,84813.0,84812.0,0.26500585]
[1741524068863,0.08064,84821.0,84812.0,0.26500585]
[1741524068864,0.11938962,84846.0,84812.0,0.22771685]
[1741524069157,0.1178959,84836.0,84835.0,0.117897]
[1741524069356,0.1985359,84836.0,84835.0,0.117897]
[1741524069560,0.2469359,84836.0,84835.0,0.117897]
[1741524069764,0.2469359,84836.0,84835.0,0.216697]
[1741524070161,0.25233252,84836.0,84835.0,0.216697]
[1741524070671,0.00539662,84836.0,84835.0,0.216697]
[1741524071168,0.00539662,84837.0,84836.0,0.1178957]
[1741524071558,0.00539662,84837.0,84836.0,0.2163957]
[1741524071757,0.12329092,84837.0,84836.0,0.2163957]
[1741524073071,0.00539662,84837.0,84836.0,0.2163957]
[1741524073571,0.12329092,84837.0,84836.0,0.2163957]
[1741524075669,0.12329092,84837.0,84836.0,0.0985]
[1741524075962,0.00539662,84837.0,84835.0,0.0006]
[1741524076162,0.117904,84830.0,84829.0,0.0478]
[1741524076663,0.1179068,84828.0,84822.0,0.01175571]
[1741524076868,0.1179068,84828.0,84822.0,0.12966951]
[1741524077063,0.1179068,84828.0,84823.0,0.0478]